[Event "Titled Tuesday Blitz April 26 Late 2022"]
[White "Lin, Dachey"]
[Black "Demchenko, Anton"]
[WhiteFideId "2029650"]
[BlackFideId "4160258"]
[WhiteElo "2313"]
[BlackElo "2539"]
[Result "1-0"]
[Round "10"]
[TimeControl "180+1"]
[Date "2022.04.26"]
[WhiteClock "0:00:06"]
[BlackClock "0:00:01"]

1. Nc3 {[%clk 0:03:00]}  Nf6 {[%clk 0:02:59]} 2. e4 {[%clk 0:03:01]}  e5 {[%clk 0:02:58]} 3. f4 {[%clk 0:03:02]}  d5 {[%clk 0:02:58]} 4. fxe5 {[%clk 0:03:02]}  Nxe4 {[%clk 0:02:56]} 5. Qf3 {[%clk 0:03:03]}  Nc6 {[%clk 0:02:54]} 6. Bb5 {[%clk 0:03:00]}  Nxc3 {[%clk 0:02:28]} 7. dxc3 {[%clk 0:03:01]}  Be7 {[%clk 0:02:26]} 8. Bf4 {[%clk 0:02:57]}  O-O {[%clk 0:02:23]} 9. Ne2 {[%clk 0:02:47]}  f6 {[%clk 0:02:03]} 10. exf6 {[%clk 0:02:43]}  Bxf6 {[%clk 0:02:02]} 11. O-O-O {[%clk 0:02:37]}  Be6 {[%clk 0:02:03]} 12. Kb1 {[%clk 0:02:12]}  Qc8 {[%clk 0:01:55]} 13. Qg3 {[%clk 0:02:07]}  Ne7 {[%clk 0:01:56]} 14. Nd4 {[%clk 0:02:00]}  c6 {[%clk 0:01:34]} 15. Nxe6 {[%clk 0:01:42]}  Qxe6 {[%clk 0:01:34]} 16. Bd3 {[%clk 0:01:42]}  Qf7 {[%clk 0:00:50]} 17. Bd6 {[%clk 0:01:36]}  Rfe8 {[%clk 0:00:46]} 18. Rhf1 {[%clk 0:01:29]}  Ng6 {[%clk 0:00:45]} 19. Qg4 {[%clk 0:00:56]}  Ne5 {[%clk 0:00:38]} 20. Bxe5 {[%clk 0:00:49]}  Rxe5 {[%clk 0:00:39]} 21. Qh3 {[%clk 0:00:47]}  Qh5 {[%clk 0:00:40]} 22. Qg3 {[%clk 0:00:39]}  Kh8 {[%clk 0:00:29]} 23. h3 {[%clk 0:00:37]}  Rae8 {[%clk 0:00:29]} 24. Qf2 {[%clk 0:00:34]}  b6 {[%clk 0:00:27]} 25. g4 {[%clk 0:00:33]}  Qh4 {[%clk 0:00:23]} 26. Qf3 {[%clk 0:00:29]}  Re1 {[%clk 0:00:12]} 27. a4 {[%clk 0:00:29]}  Rxd1+ {[%clk 0:00:12]} 28. Rxd1 {[%clk 0:00:28]}  Re1 {[%clk 0:00:12]} 29. Rxe1 {[%clk 0:00:26]}  Qxe1+ {[%clk 0:00:13]} 30. Ka2 {[%clk 0:00:26]}  Qe6 {[%clk 0:00:12]} 31. Bf5 {[%clk 0:00:21]}  Qe7 {[%clk 0:00:12]} 32. Qf4 {[%clk 0:00:20]}  g6 {[%clk 0:00:12]} 33. Qb8+ {[%clk 0:00:19]}  Kg7 {[%clk 0:00:13]} 34. Bd3 {[%clk 0:00:19]}  d4 {[%clk 0:00:12]} 35. cxd4 {[%clk 0:00:18]}  Bxd4 {[%clk 0:00:09]} 36. Bc4 {[%clk 0:00:18]}  Kh6 {[%clk 0:00:08]} 37. Qc8 {[%clk 0:00:13]}  Qf6 {[%clk 0:00:05]} 38. c3 {[%clk 0:00:08]}  Be5 {[%clk 0:00:05]} 39. Qe8 {[%clk 0:00:08]}  a5 {[%clk 0:00:03]} 40. h4 {[%clk 0:00:08]}  g5 {[%clk 0:00:02]} 41. Qh5+ {[%clk 0:00:07]}  Kg7 {[%clk 0:00:02]} 42. hxg5 {[%clk 0:00:08]}  Qg6 {[%clk 0:00:02]} 43. Qh4 {[%clk 0:00:06]}  Bf4 {[%clk 0:00:02]} 44. Qf2 {[%clk 0:00:06]}  c5 {[%clk 0:00:01]} 45. Qxf4 {[%clk 0:00:06]} 1-0


[Site "https://www.chess.com"]

[Event "Titled Tuesday Blitz April 26 Late 2022"]
[White "Makarian, Rudik"]
[Black "Sarana, Alexey"]
[WhiteFideId "44105681"]
[BlackFideId "24133795"]
[WhiteElo "2388"]
[BlackElo "2666"]
[Result "0-1"]
[Round "10"]
[TimeControl "180+1"]
[Date "2022.04.26"]
[WhiteClock "0:00:04"]
[BlackClock "0:01:02"]

1. d4 {[%clk 0:02:59]}  d5 {[%clk 0:03:00]} 2. Bg5 {[%clk 0:02:57]}  h6 {[%clk 0:02:55]} 3. Bh4 {[%clk 0:02:56]}  Bf5 {[%clk 0:02:54]} 4. e3 {[%clk 0:02:55]}  c6 {[%clk 0:02:54]} 5. c3 {[%clk 0:02:47]}  Qb6 {[%clk 0:02:54]} 6. Qb3 {[%clk 0:02:47]}  e6 {[%clk 0:02:54]} 7. Nd2 {[%clk 0:02:45]}  Bd6 {[%clk 0:02:52]} 8. Bg3 {[%clk 0:02:40]}  Be7 {[%clk 0:02:52]} 9. Ngf3 {[%clk 0:02:38]}  Nd7 {[%clk 0:02:52]} 10. Be2 {[%clk 0:02:30]}  Ngf6 {[%clk 0:02:52]} 11. h3 {[%clk 0:02:30]}  a5 {[%clk 0:02:51]} 12. Qxb6 {[%clk 0:02:23]}  Nxb6 {[%clk 0:02:52]} 13. a4 {[%clk 0:02:19]}  O-O {[%clk 0:02:50]} 14. O-O {[%clk 0:02:19]}  Rfc8 {[%clk 0:02:49]} 15. Rfc1 {[%clk 0:02:13]}  c5 {[%clk 0:02:47]} 16. Bb5 {[%clk 0:02:10]}  c4 {[%clk 0:02:42]} 17. Ne5 {[%clk 0:01:59]}  Ne8 {[%clk 0:02:33]} 18. Nd7 {[%clk 0:01:26]}  Nxd7 {[%clk 0:02:30]} 19. Bxd7 {[%clk 0:01:27]}  Rd8 {[%clk 0:02:30]} 20. Bb5 {[%clk 0:01:27]}  Nd6 {[%clk 0:02:29]} 21. Bxd6 {[%clk 0:01:26]}  Bxd6 {[%clk 0:02:30]} 22. f3 {[%clk 0:01:11]}  Bh7 {[%clk 0:02:20]} 23. Kf2 {[%clk 0:01:09]}  g5 {[%clk 0:02:20]} 24. Re1 {[%clk 0:01:06]}  Rac8 {[%clk 0:02:00]} 25. e4 {[%clk 0:01:03]}  Bf4 {[%clk 0:02:00]} 26. Nf1 {[%clk 0:01:03]}  h5 {[%clk 0:01:47]} 27. g3 {[%clk 0:01:01]}  Bd6 {[%clk 0:01:43]} 28. e5 {[%clk 0:01:01]}  Be7 {[%clk 0:01:43]} 29. f4 {[%clk 0:00:52]}  gxf4 {[%clk 0:01:35]} 30. gxf4 {[%clk 0:00:53]}  Bh4+ {[%clk 0:01:36]} 31. Ng3 {[%clk 0:00:53]}  Kg7 {[%clk 0:01:36]} 32. Rg1 {[%clk 0:00:46]}  Kh6 {[%clk 0:01:37]} 33. Ke3 {[%clk 0:00:36]}  Rg8 {[%clk 0:01:36]} 34. Ne2 {[%clk 0:00:31]}  Bf5 {[%clk 0:01:36]} 35. Rxg8 {[%clk 0:00:26]}  Rxg8 {[%clk 0:01:35]} 36. Rg1 {[%clk 0:00:26]}  Rg6 {[%clk 0:01:23]} 37. Rxg6+ {[%clk 0:00:20]}  fxg6 {[%clk 0:01:24]} 38. Ng1 {[%clk 0:00:20]}  g5 {[%clk 0:01:24]} 39. Bd7 {[%clk 0:00:06]}  gxf4+ {[%clk 0:01:23]} 40. Kf3 {[%clk 0:00:06]}  Bg5 {[%clk 0:01:19]} 41. Ne2 {[%clk 0:00:04]}  Be4+ {[%clk 0:01:06]} 42. Kf2 {[%clk 0:00:05]}  Bh4+ {[%clk 0:01:06]} 43. Kf1 {[%clk 0:00:05]}  f3 {[%clk 0:01:07]} 44. Nf4 {[%clk 0:00:04]}  Bg3 {[%clk 0:01:02]} 0-1


[Site "https://www.chess.com"]

[Event "Titled Tuesday Blitz April 26 Late 2022"]
[White "Mangialardo, Tiago Carvalho"]
[Black "Oro, Luis"]
[WhiteFideId "2130718"]
[BlackFideId "104094"]
[WhiteElo "2063"]
[BlackElo "2362"]
[Result "0-1"]
[Round "10"]
[TimeControl "180+1"]
[Date "2022.04.26"]
[WhiteClock "0:00:01"]
[BlackClock "0:00:27"]

1. e4 {[%clk 0:03:00]}  c5 {[%clk 0:02:58]} 2. Nf3 {[%clk 0:03:00]}  d6 {[%clk 0:02:58]} 3. Bb5+ {[%clk 0:03:01]}  Bd7 {[%clk 0:02:56]} 4. Bxd7+ {[%clk 0:03:01]}  Qxd7 {[%clk 0:02:56]} 5. O-O {[%clk 0:03:01]}  Nc6 {[%clk 0:02:56]} 6. c3 {[%clk 0:03:00]}  e6 {[%clk 0:02:51]} 7. d4 {[%clk 0:03:01]}  cxd4 {[%clk 0:02:51]} 8. cxd4 {[%clk 0:03:02]}  Nf6 {[%clk 0:02:51]} 9. Nc3 {[%clk 0:03:01]}  Be7 {[%clk 0:02:51]} 10. Qe2 {[%clk 0:03:00]}  O-O {[%clk 0:02:50]} 11. Bg5 {[%clk 0:02:55]}  h6 {[%clk 0:02:48]} 12. Bh4 {[%clk 0:02:55]}  a6 {[%clk 0:02:33]} 13. Rfd1 {[%clk 0:02:54]}  b5 {[%clk 0:02:16]} 14. e5 {[%clk 0:02:53]}  Nd5 {[%clk 0:02:00]} 15. Ne4 {[%clk 0:02:03]}  Bxh4 {[%clk 0:01:53]} 16. Nxh4 {[%clk 0:02:03]}  dxe5 {[%clk 0:01:43]} 17. dxe5 {[%clk 0:01:53]}  Nxe5 {[%clk 0:01:33]} 18. Rac1 {[%clk 0:01:46]}  Qe7 {[%clk 0:01:23]} 19. g3 {[%clk 0:01:37]}  Rac8 {[%clk 0:01:18]} 20. f4 {[%clk 0:00:52]}  Nc4 {[%clk 0:01:11]} 21. f5 {[%clk 0:00:24]}  Rfd8 {[%clk 0:00:56]} 22. f6 {[%clk 0:00:13]}  Nxf6 {[%clk 0:00:53]} 23. Rxd8+ {[%clk 0:00:09]}  Rxd8 {[%clk 0:00:53]} 24. b3 {[%clk 0:00:08]}  Nd6 {[%clk 0:00:45]} 25. Nc5 {[%clk 0:00:05]}  a5 {[%clk 0:00:40]} 26. Rd1 {[%clk 0:00:04]}  Qa7 {[%clk 0:00:37]} 27. Qf2 {[%clk 0:00:03]}  Qb6 {[%clk 0:00:31]} 28. Nf3 {[%clk 0:00:02]}  Nf5 {[%clk 0:00:28]} 29. Rxd8+ {[%clk 0:00:02]}  Qxd8 {[%clk 0:00:28]} 30. Ne5 {[%clk 0:00:01]}  Qd1+ {[%clk 0:00:26]} 31. Kg2 {[%clk 0:00:01]}  Qd5+ {[%clk 0:00:27]} 0-1


[Site "https://www.chess.com"]

[Event "Titled Tuesday Blitz April 26 Late 2022"]
[White "Melkumyan, Hrant"]
[Black "Caruana, Fabiano"]
[WhiteFideId "13302485"]
[BlackFideId "2020009"]
[WhiteElo "2937"]
[BlackElo "3034"]
[Result "1/2-1/2"]
[Round "10"]
[TimeControl "180+1"]
[Date "2022.04.26"]
[WhiteClock "0:00:12"]
[BlackClock "0:00:23"]

1. c4 {[%clk 0:03:00]}  e5 {[%clk 0:02:57]} 2. g3 {[%clk 0:03:00]}  Be7 {[%clk 0:02:56]} 3. Bg2 {[%clk 0:03:00]}  f5 {[%clk 0:02:56]} 4. d4 {[%clk 0:02:55]}  d6 {[%clk 0:02:56]} 5. Nc3 {[%clk 0:02:50]}  Nf6 {[%clk 0:02:56]} 6. dxe5 {[%clk 0:02:44]}  dxe5 {[%clk 0:02:57]} 7. Qxd8+ {[%clk 0:02:45]}  Bxd8 {[%clk 0:02:57]} 8. b3 {[%clk 0:02:46]}  c6 {[%clk 0:02:56]} 9. Bb2 {[%clk 0:02:45]}  Be6 {[%clk 0:02:56]} 10. O-O-O {[%clk 0:02:43]}  Nbd7 {[%clk 0:02:57]} 11. Nf3 {[%clk 0:02:38]}  h6 {[%clk 0:02:49]} 12. e3 {[%clk 0:02:37]}  Be7 {[%clk 0:02:44]} 13. Ne2 {[%clk 0:02:28]}  Ne4 {[%clk 0:02:09]} 14. Rhf1 {[%clk 0:02:27]}  Bf6 {[%clk 0:02:05]} 15. Kc2 {[%clk 0:02:10]}  Kf7 {[%clk 0:01:54]} 16. Nc1 {[%clk 0:02:10]}  Ng5 {[%clk 0:01:47]} 17. h4 {[%clk 0:02:03]}  Nxf3 {[%clk 0:01:46]} 18. Bxf3 {[%clk 0:02:04]}  e4 {[%clk 0:01:45]} 19. Be2 {[%clk 0:01:59]}  a5 {[%clk 0:01:38]} 20. Bxf6 {[%clk 0:01:52]}  Nxf6 {[%clk 0:01:35]} 21. a3 {[%clk 0:01:52]}  Ke7 {[%clk 0:01:30]} 22. Kc3 {[%clk 0:01:50]}  Rab8 {[%clk 0:01:26]} 23. Rd2 {[%clk 0:01:13]}  b5 {[%clk 0:01:25]} 24. cxb5 {[%clk 0:01:09]}  cxb5 {[%clk 0:01:26]} 25. Rfd1 {[%clk 0:01:10]}  Rhc8+ {[%clk 0:01:11]} 26. Kb2 {[%clk 0:01:10]}  Nd7 {[%clk 0:01:12]} 27. Rc2 {[%clk 0:00:53]}  Nc5 {[%clk 0:00:59]} 28. Rd4 {[%clk 0:00:45]}  Na4+ {[%clk 0:00:52]} 29. Kb1 {[%clk 0:00:35]}  Nc3+ {[%clk 0:00:52]} 30. Kb2 {[%clk 0:00:36]}  b4 {[%clk 0:00:53]} 31. axb4 {[%clk 0:00:18]}  axb4 {[%clk 0:00:54]} 32. Bc4 {[%clk 0:00:18]}  Bxc4 {[%clk 0:00:54]} 33. Rxc4 {[%clk 0:00:16]}  Rxc4 {[%clk 0:00:54]} 34. bxc4 {[%clk 0:00:17]}  Na4+ {[%clk 0:00:54]} 35. Ka2 {[%clk 0:00:14]}  Nc5 {[%clk 0:00:54]} 36. Kb2 {[%clk 0:00:10]}  b3 {[%clk 0:00:50]} 37. Rd2 {[%clk 0:00:07]}  Na4+ {[%clk 0:00:50]} 38. Kb1 {[%clk 0:00:07]}  Rb4 {[%clk 0:00:39]} 39. Rd4 {[%clk 0:00:06]}  Ke6 {[%clk 0:00:33]} 40. Ne2 {[%clk 0:00:06]}  g5 {[%clk 0:00:30]} 41. hxg5 {[%clk 0:00:05]}  hxg5 {[%clk 0:00:31]} 42. c5 {[%clk 0:00:05]}  Rxd4 {[%clk 0:00:27]} 43. Nxd4+ {[%clk 0:00:06]}  Kd5 {[%clk 0:00:28]} 44. c6 {[%clk 0:00:04]}  Kd6 {[%clk 0:00:25]} 45. Nxf5+ {[%clk 0:00:03]}  Kxc6 {[%clk 0:00:24]} 46. Nd4+ {[%clk 0:00:04]}  Kd5 {[%clk 0:00:25]} 47. Nxb3 {[%clk 0:00:05]}  Kc4 {[%clk 0:00:25]} 48. Kc2 {[%clk 0:00:05]}  Kd5 {[%clk 0:00:16]} 49. Nd2 {[%clk 0:00:06]}  Nc5 {[%clk 0:00:16]} 50. Nb1 {[%clk 0:00:06]}  Nd3 {[%clk 0:00:14]} 51. Nc3+ {[%clk 0:00:06]}  Ke5 {[%clk 0:00:15]} 52. Nd1 {[%clk 0:00:05]}  g4 {[%clk 0:00:16]} 53. Kd2 {[%clk 0:00:05]}  Kd5 {[%clk 0:00:16]} 54. Ke2 {[%clk 0:00:06]}  Ke5 {[%clk 0:00:17]} 55. Nc3 {[%clk 0:00:06]}  Nc1+ {[%clk 0:00:17]} 56. Kf1 {[%clk 0:00:07]}  Nd3 {[%clk 0:00:18]} 57. Ne2 {[%clk 0:00:06]}  Kf5 {[%clk 0:00:17]} 58. Nf4 {[%clk 0:00:07]}  Ne5 {[%clk 0:00:17]} 59. Ke2 {[%clk 0:00:07]}  Nf3 {[%clk 0:00:18]} 60. Nd5 {[%clk 0:00:07]}  Ke5 {[%clk 0:00:17]} 61. Nb4 {[%clk 0:00:08]}  Ng1+ {[%clk 0:00:18]} 62. Kf1 {[%clk 0:00:08]}  Nf3 {[%clk 0:00:19]} 63. Nc2 {[%clk 0:00:08]}  Nd2+ {[%clk 0:00:19]} 64. Kg2 {[%clk 0:00:08]}  Nf3 {[%clk 0:00:20]} 65. Na3 {[%clk 0:00:08]}  Ne1+ {[%clk 0:00:20]} 66. Kf1 {[%clk 0:00:08]}  Nf3 {[%clk 0:00:21]} 67. Nc4+ {[%clk 0:00:08]}  Kd5 {[%clk 0:00:21]} 68. Nb6+ {[%clk 0:00:09]}  Ke5 {[%clk 0:00:22]} 69. Nd7+ {[%clk 0:00:09]}  Kf5 {[%clk 0:00:22]} 70. Nc5 {[%clk 0:00:09]}  Nd2+ {[%clk 0:00:22]} 71. Ke2 {[%clk 0:00:09]}  Nf3 {[%clk 0:00:23]} 72. Nb3 {[%clk 0:00:09]}  Ke5 {[%clk 0:00:23]} 73. Nd2 {[%clk 0:00:10]}  Ng5 {[%clk 0:00:22]} 74. Kd1 {[%clk 0:00:10]}  Nh3 {[%clk 0:00:22]} 75. Ke2 {[%clk 0:00:10]}  Kf5 {[%clk 0:00:22]} 76. Nb3 {[%clk 0:00:09]}  Ng1+ {[%clk 0:00:22]} 77. Kd1 {[%clk 0:00:08]}  Nh3 {[%clk 0:00:22]} 78. Nd4+ {[%clk 0:00:08]}  Ke5 {[%clk 0:00:23]} 79. Ke2 {[%clk 0:00:09]}  Ng5 {[%clk 0:00:22]} 80. Kd2 {[%clk 0:00:09]}  Nh3 {[%clk 0:00:23]} 81. Ke1 {[%clk 0:00:09]}  Ng5 {[%clk 0:00:23]} 82. Kf1 {[%clk 0:00:10]}  Nh3 {[%clk 0:00:23]} 83. Ne2 {[%clk 0:00:10]}  Ng5 {[%clk 0:00:23]} 84. Nf4 {[%clk 0:00:11]}  Kf5 {[%clk 0:00:23]} 85. Ng2 {[%clk 0:00:11]}  Ke5 {[%clk 0:00:22]} 86. Ne1 {[%clk 0:00:12]}  Ne6 {[%clk 0:00:22]} 87. Ke2 {[%clk 0:00:12]}  Nc5 {[%clk 0:00:22]} 88. Nc2 {[%clk 0:00:13]}  Kf5 {[%clk 0:00:22]} 89. Nb4 {[%clk 0:00:13]}  Ke5 {[%clk 0:00:22]} 90. Kd2 {[%clk 0:00:12]}  Ne6 {[%clk 0:00:22]} 91. Nc6+ {[%clk 0:00:12]}  Kd5 {[%clk 0:00:21]} 92. Ne7+ {[%clk 0:00:12]}  Ke5 {[%clk 0:00:21]} 93. Ng6+ {[%clk 0:00:12]}  Kf5 {[%clk 0:00:22]} 94. Nf4 {[%clk 0:00:13]}  Ng5 {[%clk 0:00:22]} 95. Ng2 {[%clk 0:00:13]}  Nf3+ {[%clk 0:00:22]} 96. Kd1 {[%clk 0:00:13]}  Ke5 {[%clk 0:00:23]} 97. Nh4 {[%clk 0:00:12]}  Ng5 {[%clk 0:00:23]} 98. Ke2 {[%clk 0:00:12]}  Ne6 {[%clk 0:00:23]} 99. Ng6+ {[%clk 0:00:11]}  Kf5 {[%clk 0:00:23]} 100. Nf4 {[%clk 0:00:12]}  Ng5 {[%clk 0:00:23]} 101. Nd5 {[%clk 0:00:12]}  Nf3 {[%clk 0:00:23]} 102. Nb4 {[%clk 0:00:12]}  Ng1+ {[%clk 0:00:23]} 1/2-1/2


[Site "https://www.chess.com"]

[Event "Titled Tuesday Blitz April 26 Late 2022"]
[White "Menna Barreto, Felipe Kubiaki"]
[Black "Kujawski, Adam"]
[WhiteFideId "2119757"]
[BlackFideId "1100920"]
[WhiteElo "2261"]
[BlackElo "2053"]
[Result "1-0"]
[Round "10"]
[TimeControl "180+1"]
[Date "2022.04.26"]
[WhiteClock "0:00:33"]
[BlackClock "0:00:03"]

1. Nf3 {[%clk 0:01:40]}  d5 {[%clk 0:02:51]} 2. c4 {[%clk 0:01:38]}  d4 {[%clk 0:02:50]} 3. e3 {[%clk 0:01:38]}  Nc6 {[%clk 0:02:50]} 4. exd4 {[%clk 0:01:38]}  Nxd4 {[%clk 0:02:50]} 5. Nc3 {[%clk 0:01:39]}  Nxf3+ {[%clk 0:02:43]} 6. Qxf3 {[%clk 0:01:38]}  Nf6 {[%clk 0:02:42]} 7. Bd3 {[%clk 0:01:35]}  e6 {[%clk 0:02:37]} 8. O-O {[%clk 0:01:35]}  Be7 {[%clk 0:02:37]} 9. Bc2 {[%clk 0:01:35]}  c5 {[%clk 0:02:35]} 10. Rd1 {[%clk 0:01:33]}  O-O {[%clk 0:02:34]} 11. Ne4 {[%clk 0:01:31]}  Nxe4 {[%clk 0:02:28]} 12. Qxe4 {[%clk 0:01:31]}  g6 {[%clk 0:02:28]} 13. d4 {[%clk 0:01:27]}  cxd4 {[%clk 0:02:26]} 14. Qxd4 {[%clk 0:01:26]}  Qxd4 {[%clk 0:02:25]} 15. Rxd4 {[%clk 0:01:27]}  Bf6 {[%clk 0:02:23]} 16. Rd1 {[%clk 0:01:27]}  a5 {[%clk 0:01:42]} 17. Rb1 {[%clk 0:01:25]}  Ra6 {[%clk 0:01:39]} 18. Bh6 {[%clk 0:01:22]}  Rd8 {[%clk 0:01:30]} 19. Rxd8+ {[%clk 0:01:20]}  Bxd8 {[%clk 0:01:30]} 20. Rd1 {[%clk 0:01:20]}  Be7 {[%clk 0:01:29]} 21. Be4 {[%clk 0:01:15]}  Rd6 {[%clk 0:01:25]} 22. Rxd6 {[%clk 0:01:14]}  Bxd6 {[%clk 0:01:26]} 23. Be3 {[%clk 0:01:13]}  f5 {[%clk 0:01:23]} 24. Bf3 {[%clk 0:01:12]}  Bc7 {[%clk 0:01:06]} 25. c5 {[%clk 0:01:07]}  Kf7 {[%clk 0:01:05]} 26. Kf1 {[%clk 0:01:04]}  e5 {[%clk 0:01:03]} 27. Bd5+ {[%clk 0:01:03]}  Kf6 {[%clk 0:01:02]} 28. f3 {[%clk 0:01:00]}  g5 {[%clk 0:00:59]} 29. Ke2 {[%clk 0:00:58]}  h5 {[%clk 0:00:59]} 30. b3 {[%clk 0:00:52]}  h4 {[%clk 0:00:58]} 31. h3 {[%clk 0:00:48]}  g4 {[%clk 0:00:53]} 32. fxg4 {[%clk 0:00:48]}  fxg4 {[%clk 0:00:53]} 33. hxg4 {[%clk 0:00:49]}  Bxg4+ {[%clk 0:00:53]} 34. Kd3 {[%clk 0:00:49]}  Bf5+ {[%clk 0:00:44]} 35. Be4 {[%clk 0:00:47]}  Bc8 {[%clk 0:00:27]} 36. a3 {[%clk 0:00:46]}  Be6 {[%clk 0:00:13]} 37. b4 {[%clk 0:00:45]}  axb4 {[%clk 0:00:14]} 38. axb4 {[%clk 0:00:46]}  Bd8 {[%clk 0:00:11]} 39. Bxb7 {[%clk 0:00:44]}  h3 {[%clk 0:00:09]} 40. gxh3 {[%clk 0:00:44]}  Bxh3 {[%clk 0:00:10]} 41. Be4 {[%clk 0:00:44]}  Be6 {[%clk 0:00:09]} 42. b5 {[%clk 0:00:43]}  Ba2 {[%clk 0:00:09]} 43. Ke2 {[%clk 0:00:39]}  Ke6 {[%clk 0:00:08]} 44. b6 {[%clk 0:00:35]}  Bd5 {[%clk 0:00:08]} 45. Kd3 {[%clk 0:00:33]}  Ba2 {[%clk 0:00:03]} 46. Kc3 {[%clk 0:00:33]} 1-0


[Site "https://www.chess.com"]

[Event "Titled Tuesday Blitz April 26 Late 2022"]
[White "Mikhailov, Viacheslav"]
[Black "Vasquez Schroeder, Rodrigo"]
[WhiteFideId "4187369"]
[BlackFideId "3400042"]
[WhiteElo "2381"]
[BlackElo "2561"]
[Result "1-0"]
[Round "10"]
[TimeControl "180+1"]
[Date "2022.04.26"]
[WhiteClock "0:01:43"]
[BlackClock "0:01:25"]

1. Nf3 {[%clk 0:03:00]}  c5 {[%clk 0:02:59]} 2. g3 {[%clk 0:03:00]}  b6 {[%clk 0:02:59]} 3. Bg2 {[%clk 0:03:00]}  Bb7 {[%clk 0:03:00]} 4. O-O {[%clk 0:03:00]}  Nf6 {[%clk 0:03:00]} 5. c3 {[%clk 0:03:00]}  e6 {[%clk 0:03:00]} 6. d4 {[%clk 0:03:01]}  Be7 {[%clk 0:03:00]} 7. a4 {[%clk 0:03:01]}  a6 {[%clk 0:02:58]} 8. a5 {[%clk 0:03:00]}  b5 {[%clk 0:02:58]} 9. dxc5 {[%clk 0:03:01]}  Bxc5 {[%clk 0:02:58]} 10. Nbd2 {[%clk 0:02:56]}  O-O {[%clk 0:02:54]} 11. c4 {[%clk 0:02:57]}  bxc4 {[%clk 0:02:49]} 12. Nxc4 {[%clk 0:02:58]}  d5 {[%clk 0:02:47]} 13. Nce5 {[%clk 0:02:41]}  Nbd7 {[%clk 0:02:47]} 14. Bf4 {[%clk 0:02:40]}  Rc8 {[%clk 0:02:42]} 15. Qb3 {[%clk 0:02:38]}  Ba8 {[%clk 0:02:40]} 16. Nxd7 {[%clk 0:02:35]}  Qxd7 {[%clk 0:02:40]} 17. Ne5 {[%clk 0:02:31]}  Qa7 {[%clk 0:02:39]} 18. Nd3 {[%clk 0:02:30]}  Be7 {[%clk 0:02:31]} 19. Qb6 {[%clk 0:02:27]}  Qxb6 {[%clk 0:02:21]} 20. axb6 {[%clk 0:02:28]}  Bb7 {[%clk 0:02:22]} 21. Rfc1 {[%clk 0:02:28]}  Bd8 {[%clk 0:02:19]} 22. Nc5 {[%clk 0:02:21]}  Rxc5 {[%clk 0:02:10]} 23. Rxc5 {[%clk 0:02:22]}  Bxb6 {[%clk 0:02:07]} 24. Rc3 {[%clk 0:02:19]}  Nd7 {[%clk 0:01:53]} 25. Rb3 {[%clk 0:02:01]}  Bc8 {[%clk 0:01:44]} 26. Bd6 {[%clk 0:01:54]}  Re8 {[%clk 0:01:41]} 27. e4 {[%clk 0:01:45]}  d4 {[%clk 0:01:25]} 28. e5 {[%clk 0:01:43]} 1-0


[Site "https://www.chess.com"]

[Event "Titled Tuesday Blitz April 26 Late 2022"]
[White "Mikhalsky, Vladimir"]
[Black "Gomez Dieguez, David"]
[WhiteFideId "14144352"]
[BlackFideId "22223630"]
[WhiteElo "2301"]
[BlackElo "2115"]
[Result "1-0"]
[Round "10"]
[TimeControl "180+1"]
[Date "2022.04.26"]
[WhiteClock "0:00:47"]
[BlackClock "0:00:26"]

1. e4 {[%clk 0:03:00]}  c6 {[%clk 0:02:58]} 2. d3 {[%clk 0:02:55]}  d5 {[%clk 0:02:59]} 3. Nd2 {[%clk 0:02:55]}  e5 {[%clk 0:02:58]} 4. g3 {[%clk 0:02:55]}  Nf6 {[%clk 0:02:56]} 5. Bg2 {[%clk 0:02:55]}  Bd6 {[%clk 0:02:50]} 6. Ngf3 {[%clk 0:02:53]}  O-O {[%clk 0:02:50]} 7. O-O {[%clk 0:02:53]}  a5 {[%clk 0:02:47]} 8. c3 {[%clk 0:02:50]}  Qc7 {[%clk 0:02:44]} 9. h3 {[%clk 0:02:48]}  Re8 {[%clk 0:02:43]} 10. a4 {[%clk 0:02:45]}  b6 {[%clk 0:02:43]} 11. Nh4 {[%clk 0:02:43]}  g6 {[%clk 0:02:42]} 12. Kh2 {[%clk 0:02:42]}  Ba6 {[%clk 0:02:41]} 13. Qe2 {[%clk 0:02:42]}  Nbd7 {[%clk 0:02:41]} 14. Nb3 {[%clk 0:02:30]}  dxe4 {[%clk 0:02:40]} 15. Bxe4 {[%clk 0:02:28]}  Nxe4 {[%clk 0:02:32]} 16. Qxe4 {[%clk 0:02:28]}  f5 {[%clk 0:02:27]} 17. Nxf5 {[%clk 0:02:21]}  gxf5 {[%clk 0:02:26]} 18. Qxf5 {[%clk 0:02:21]}  Nf8 {[%clk 0:02:10]} 19. Re1 {[%clk 0:02:09]}  Qf7 {[%clk 0:02:08]} 20. Qg4+ {[%clk 0:02:08]}  Qg6 {[%clk 0:02:06]} 21. Qxg6+ {[%clk 0:02:03]}  Nxg6 {[%clk 0:02:05]} 22. Be3 {[%clk 0:02:01]}  Bc7 {[%clk 0:01:47]} 23. d4 {[%clk 0:01:56]}  Bc4 {[%clk 0:01:43]} 24. Nd2 {[%clk 0:01:55]}  Bd3 {[%clk 0:01:43]} 25. Nf3 {[%clk 0:01:52]}  e4 {[%clk 0:01:42]} 26. Nd2 {[%clk 0:01:44]}  Rf8 {[%clk 0:01:34]} 27. Kg2 {[%clk 0:01:41]}  Ne7 {[%clk 0:01:32]} 28. Bh6 {[%clk 0:01:33]}  Rfe8 {[%clk 0:01:15]} 29. Nxe4 {[%clk 0:01:30]}  Bxe4+ {[%clk 0:01:12]} 30. Rxe4 {[%clk 0:01:29]}  Nf5 {[%clk 0:01:12]} 31. Rg4+ {[%clk 0:01:27]}  Kf7 {[%clk 0:01:11]} 32. Bf4 {[%clk 0:01:22]}  h5 {[%clk 0:00:59]} 33. Rg5 {[%clk 0:01:20]}  Kf6 {[%clk 0:01:00]} 34. Rxf5+ {[%clk 0:01:14]}  Kxf5 {[%clk 0:00:59]} 35. Bxc7 {[%clk 0:01:14]}  Ra6 {[%clk 0:00:52]} 36. Kf3 {[%clk 0:01:08]}  Re7 {[%clk 0:00:51]} 37. Bd6 {[%clk 0:01:05]}  Re6 {[%clk 0:00:47]} 38. Be5 {[%clk 0:01:03]}  c5 {[%clk 0:00:45]} 39. g4+ {[%clk 0:01:03]}  hxg4+ {[%clk 0:00:46]} 40. hxg4+ {[%clk 0:01:02]}  Kg6 {[%clk 0:00:47]} 41. Ke4 {[%clk 0:01:00]}  cxd4 {[%clk 0:00:44]} 42. f4 {[%clk 0:01:00]}  Re8 {[%clk 0:00:39]} 43. f5+ {[%clk 0:00:58]}  Kg5 {[%clk 0:00:39]} 44. cxd4 {[%clk 0:00:55]}  Kxg4 {[%clk 0:00:39]} 45. Rg1+ {[%clk 0:00:54]}  Kh3 {[%clk 0:00:37]} 46. Kf3 {[%clk 0:00:50]}  Kh4 {[%clk 0:00:31]} 47. Bf6+ {[%clk 0:00:48]}  Kh5 {[%clk 0:00:26]} 48. Rh1# {[%clk 0:00:47]} 1-0


[Site "https://www.chess.com"]